Workbook

Sheet 翻译第二批调剂
A1: 序号 | B1: 考生编号 | C1: 姓名 | D1: 笔试成绩 | E1: 面试成绩 | F1: 复试总成绩百分制 | G1: 复试成绩百分制*50% | H1: 初试成绩 | I1: 初试成绩百分制 | J1: 初试成绩百分制*50% | K1: 总成绩
A2: 2 | B2: 102549210003087 | C2: 刘佳文 | D2: 64 | E2: 86.2 | F2: =E2*0.5+D2*0.5 -> 75.1 | G2: =F2*0.5 -> 37.55 | H2: 389 | I2: =H2/5 -> 77.8 | J2: =I2*0.5 -> 38.9 | K2: =G2+J2 -> 76.45
A3: 1 | B3: 105619200010182 | C3: 冀佳 | D3: 63.5 | E3: 71.6 | F3: =E3*0.5+D3*0.5 -> 67.55 | G3: =F3*0.5 -> 33.775 | H3: 391 | I3: =H3/5 -> 78.2 | J3: =I3*0.5 -> 39.1 | K3: =G3+J3 -> 72.875
A4: 3 | B4: 105209666603670 | C4: 龚锐 | D4: 53.5 | E4: 77.4 | F4: =E4*0.5+D4*0.5 -> 65.45 | G4: =F4*0.5 -> 32.725 | H4: 389 | I4: =H4/5 -> 77.8 | J4: =I4*0.5 -> 38.9 | K4: =G4+J4 -> 71.625
A5: 4 | B5: 105619200010201 | C5: 韩兴营 | D5: 48 | E5: 79.4 | F5: =E5*0.5+D5*0.5 -> 63.7 | G5: =F5*0.5 -> 31.85 | H5: 388 | I5: =H5/5 -> 77.6 | J5: =I5*0.5 -> 38.8 | K5: =G5+J5 -> 70.65

Sheet 翻译第三批调剂
A1: 序号 | B1: 考生编号 | C1: 姓名 | D1: 笔试成绩 | E1: 面试成绩 | F1: 复试总成绩百分制 | G1: 复试成绩百分制*50% | H1: 初试成绩 | I1: 初试成绩百分制 | J1: 初试成绩百分制*50% | K1: 总成绩
A2: 1 | B2: 104259540004578 | C2: 王倩 | D2: 85 | E2: 81.2 | F2: =D2*0.5+E2*0.5 -> 83.1 | G2: =F2*0.5 -> 41.55 | H2: 401 | I2: =H2/5 -> 80.2 | J2: =I2*0.5 -> 40.1 | K2: =G2+J2 -> 81.65
A3: 2 | B3: 100319055102091 | C3: 钱丽谦 | D3: 72 | E3: 85.8 | F3: =D3*0.5+E3*0.5 -> 78.9 | G3: =F3*0.5 -> 39.45 | H3: 400 | I3: =H3/5 -> 80 | J3: =I3*0.5 -> 40 | K3: =G3+J3 -> 79.45

Sheet 外国语言文学第三批调剂
A1: 序号 | B1: 考生编号 | C1: 姓名 | D1: 二外成绩 | E1: 笔试成绩 | F1: 面试成绩 | G1: 复试总成绩百分制 | H1: 复试成绩百分制*50% | I1: 初试成绩 | J1: 初试成绩百分制 | K1: 初试成绩百分制*50% | L1: 总成绩
A2: 1 | B2: 100329050211106 | C2: 罗妍 | D2: 85 | E2: 83 | F2: 88.6 | G2: =D2*0.2+E2*0.4+F2*0.4 -> 85.64 | H2: =G2*0.5 -> 42.82 | I2: 398 | J2: =I2/5 -> 79.6 | K2: =J2*0.5 -> 39.8 | L2: =H2+K2 -> 82.62
A3: 2 | B3: 100329050211011 | C3: 袁琳琳 | D3: 85 | E3: 70 | F3: 81.4 | G3: =D3*0.2+E3*0.4+F3*0.4 -> 77.56 | H3: =G3*0.5 -> 38.78 | I3: 394 | J3: =I3/5 -> 78.8 | K3: =J3*0.5 -> 39.4 | L3: =H3+K3 -> 78.18
